{"text_format":"2","workbook":"xlsx","n_sheets":1,"sheets":["NYRating1"],"not_rendered":{"charts":0,"images":1,"macros":0,"external_links":0,"defined_names":0,"comments":0,"pivot_tables":0},"unopened":[],"bounds":{"document_bytes":16777216,"sheet_cells":100000,"run_cost":"one","rows_first":2000,"rows_last":500,"rows_between":2000,"halvings":0,"cell_chars":16384,"cell_head_chars":4096},"cells_cut":0,"cells_raw":0,"read":"whole","date_system":"1900"}

{"sheet":"NYRating1","index":0,"n_rows":137,"n_cols":6,"rows_kept":137,"cut":false,"hidden":false,"merged":[[2,1,2,3]]}
[]
[]
[null,"Rating Kyiv Winter Open"]
{"$rows_empty":7}
["№","Имя","Телефон","Buy In","ITM","Rating point     "]
[1,"Магнит Слава",null,5200,31250,{"$f":"Таблица1[[#This Row],[Buy In]]/100+Таблица1[[#This Row],[ITM]]/100","v":364.5}]
[2,"Луговенко Дмитрий",null,3700,26750,{"$f":"Таблица1[[#This Row],[Buy In]]/100+Таблица1[[#This Row],[ITM]]/100","v":304.5}]
[3,"Смирнов Виктор",null,8600,14100,{"$f":"Таблица1[[#This Row],[Buy In]]/100+Таблица1[[#This Row],[ITM]]/100","v":227}]
[4,"Вячеслав Георгиевич",null,5400,12500,{"$f":"Таблица1[[#This Row],[Buy In]]/100+Таблица1[[#This Row],[ITM]]/100","v":179}]
[5,"Матус Стас",null,9000,8300,{"$f":"Таблица1[[#This Row],[Buy In]]/100+Таблица1[[#This Row],[ITM]]/100","v":173}]
[6,"Лысенко Олег",null,11300,5700,{"$f":"Таблица1[[#This Row],[Buy In]]/100+Таблица1[[#This Row],[ITM]]/100","v":170}]
[7,"Опанасык Евгений",null,2000,15000,{"$f":"Таблица1[[#This Row],[Buy In]]/100+Таблица1[[#This Row],[ITM]]/100","v":170}]
[8,"Кедровский Михаил",null,5500,10000,{"$f":"Таблица1[[#This Row],[Buy In]]/100+Таблица1[[#This Row],[ITM]]/100","v":155}]
[9,"Галатенко Стас",null,4000,11400,{"$f":"Таблица1[[#This Row],[Buy In]]/100+Таблица1[[#This Row],[ITM]]/100","v":154}]
[10,"Шкляр Ярослав",null,10800,4300,{"$f":"Таблица1[[#This Row],[Buy In]]/100+Таблица1[[#This Row],[ITM]]/100","v":151}]
[11,"Гусейнов Абдул",null,7100,7200,{"$f":"Таблица1[[#This Row],[Buy In]]/100+Таблица1[[#This Row],[ITM]]/100","v":143}]
[12,"Бархударов Борис",null,1700,11300,{"$f":"Таблица1[[#This Row],[Buy In]]/100+Таблица1[[#This Row],[ITM]]/100","v":130}]
[13,"Костырко Николай",null,9000,3900,{"$f":"Таблица1[[#This Row],[Buy In]]/100+Таблица1[[#This Row],[ITM]]/100","v":129}]
[14,"Карпов Сергей",null,2000,10800,{"$f":"Таблица1[[#This Row],[Buy In]]/100+Таблица1[[#This Row],[ITM]]/100","v":128}]
[15,"Шишкин Ярик",null,12200,null,{"$f":"Таблица1[[#This Row],[Buy In]]/100+Таблица1[[#This Row],[ITM]]/100","v":122}]
[16,"Удовенко Олег",null,2000,9200,{"$f":"Таблица1[[#This Row],[Buy In]]/100+Таблица1[[#This Row],[ITM]]/100","v":112}]
[17,"Богданов Ренат",null,3500,7500,{"$f":"Таблица1[[#This Row],[Buy In]]/100+Таблица1[[#This Row],[ITM]]/100","v":110}]
[18,"Филинский Александр",null,4200,6300,{"$f":"Таблица1[[#This Row],[Buy In]]/100+Таблица1[[#This Row],[ITM]]/100","v":105}]
[19,"Кравченко Дмитрий",null,4000,5200,{"$f":"Таблица1[[#This Row],[Buy In]]/100+Таблица1[[#This Row],[ITM]]/100","v":92}]
[20,"Герц Андрей",null,3000,5800,{"$f":"Таблица1[[#This Row],[Buy In]]/100+Таблица1[[#This Row],[ITM]]/100","v":88}]
[21,"Мельничук Павел",null,6400,1700,{"$f":"Таблица1[[#This Row],[Buy In]]/100+Таблица1[[#This Row],[ITM]]/100","v":81}]
[22,"Третьяков Юра",null,8000,null,{"$f":"Таблица1[[#This Row],[Buy In]]/100+Таблица1[[#This Row],[ITM]]/100","v":80}]
[23,"Шкарбан Анатолий",null,3000,5000,{"$f":"Таблица1[[#This Row],[Buy In]]/100+Таблица1[[#This Row],[ITM]]/100","v":80}]
[24,"Мирослав",null,2000,5700,{"$f":"Таблица1[[#This Row],[Buy In]]/100+Таблица1[[#This Row],[ITM]]/100","v":77}]
[25,"Стукалин Игорь",null,1200,6500,{"$f":"Таблица1[[#This Row],[Buy In]]/100+Таблица1[[#This Row],[ITM]]/100","v":77}]
[26,"Ткаченко Валентин",null,1800,5800,{"$f":"Таблица1[[#This Row],[Buy In]]/100+Таблица1[[#This Row],[ITM]]/100","v":76}]
[27,"Павлов Олег",null,7400,null,{"$f":"Таблица1[[#This Row],[Buy In]]/100+Таблица1[[#This Row],[ITM]]/100","v":74}]
[28,"Клименко Сергей",null,3000,3700,{"$f":"Таблица1[[#This Row],[Buy In]]/100+Таблица1[[#This Row],[ITM]]/100","v":67}]
[29,"Казимиренко Сергей",null,3000,3400,{"$f":"Таблица1[[#This Row],[Buy In]]/100+Таблица1[[#This Row],[ITM]]/100","v":64}]
[30,"Лавренчук Андрей",null,6200,null,{"$f":"Таблица1[[#This Row],[Buy In]]/100+Таблица1[[#This Row],[ITM]]/100","v":62}]
[31,"Балинский Сергей",null,6000,null,{"$f":"Таблица1[[#This Row],[Buy In]]/100+Таблица1[[#This Row],[ITM]]/100","v":60}]
[32,"Водяник Роман",null,3000,2950,{"$f":"Таблица1[[#This Row],[Buy In]]/100+Таблица1[[#This Row],[ITM]]/100","v":59.5}]
[33,"Жирнов Александр",null,5800,null,{"$f":"Таблица1[[#This Row],[Buy In]]/100+Таблица1[[#This Row],[ITM]]/100","v":58}]
[34,"Бардовская Таисия",null,2200,3400,{"$f":"Таблица1[[#This Row],[Buy In]]/100+Таблица1[[#This Row],[ITM]]/100","v":56}]
[35,"Евгений",null,500,4900,{"$f":"Таблица1[[#This Row],[Buy In]]/100+Таблица1[[#This Row],[ITM]]/100","v":54}]
[36,"Гацко Федор",null,5200,null,{"$f":"Таблица1[[#This Row],[Buy In]]/100+Таблица1[[#This Row],[ITM]]/100","v":52}]
[37,"Рожановский Борис",null,5200,null,{"$f":"Таблица1[[#This Row],[Buy In]]/100+Таблица1[[#This Row],[ITM]]/100","v":52}]
[38,"Вайт Сергей",null,5000,null,{"$f":"Таблица1[[#This Row],[Buy In]]/100+Таблица1[[#This Row],[ITM]]/100","v":50}]
[39,"Жлоба Павел",null,2200,2550,{"$f":"Таблица1[[#This Row],[Buy In]]/100+Таблица1[[#This Row],[ITM]]/100","v":47.5}]
[40,"Подковский Артем",null,4500,null,{"$f":"Таблица1[[#This Row],[Buy In]]/100+Таблица1[[#This Row],[ITM]]/100","v":45}]
[41,"Иванов Вова",null,4000,null,{"$f":"Таблица1[[#This Row],[Buy In]]/100+Таблица1[[#This Row],[ITM]]/100","v":40}]
[42,"Николаев Леонид",null,4000,null,{"$f":"Таблица1[[#This Row],[Buy In]]/100+Таблица1[[#This Row],[ITM]]/100","v":40}]
[43,"Серега2",null,4000,null,{"$f":"Таблица1[[#This Row],[Buy In]]/100+Таблица1[[#This Row],[ITM]]/100","v":40}]
[44,"Сокирко Дима",null,4000,null,{"$f":"Таблица1[[#This Row],[Buy In]]/100+Таблица1[[#This Row],[ITM]]/100","v":40}]
[45,"Шовковый Владислав",null,4000,null,{"$f":"Таблица1[[#This Row],[Buy In]]/100+Таблица1[[#This Row],[ITM]]/100","v":40}]
[46,"Педченко Паша",null,3700,null,{"$f":"Таблица1[[#This Row],[Buy In]]/100+Таблица1[[#This Row],[ITM]]/100","v":37}]
[47,"Выговский Даниил",null,3500,null,{"$f":"Таблица1[[#This Row],[Buy In]]/100+Таблица1[[#This Row],[ITM]]/100","v":35}]
[48,"Гоголев Стас",null,1000,2500,{"$f":"Таблица1[[#This Row],[Buy In]]/100+Таблица1[[#This Row],[ITM]]/100","v":35}]
[49,"Букмекер Андрей",null,500,2950,{"$f":"Таблица1[[#This Row],[Buy In]]/100+Таблица1[[#This Row],[ITM]]/100","v":34.5}]
[50,"Егодин Вадим",null,1500,1950,{"$f":"Таблица1[[#This Row],[Buy In]]/100+Таблица1[[#This Row],[ITM]]/100","v":34.5}]
[51,"Бурлачук Андрей",null,800,2600,{"$f":"Таблица1[[#This Row],[Buy In]]/100+Таблица1[[#This Row],[ITM]]/100","v":34}]
[52,"Смертенко Евгений",null,3200,null,{"$f":"Таблица1[[#This Row],[Buy In]]/100+Таблица1[[#This Row],[ITM]]/100","v":32}]
[53,"Кефиров Артем",null,3000,null,{"$f":"Таблица1[[#This Row],[Buy In]]/100+Таблица1[[#This Row],[ITM]]/100","v":30}]
[54,"Кириченко Евгений",null,3000,null,{"$f":"Таблица1[[#This Row],[Buy In]]/100+Таблица1[[#This Row],[ITM]]/100","v":30}]
[55,"Недвига Виталий",null,3000,null,{"$f":"Таблица1[[#This Row],[Buy In]]/100+Таблица1[[#This Row],[ITM]]/100","v":30}]
[56,"Подзолкин Антон ",null,3000,null,{"$f":"Таблица1[[#This Row],[Buy In]]/100+Таблица1[[#This Row],[ITM]]/100","v":30}]
[57,"Захарец Игорь",null,2800,null,{"$f":"Таблица1[[#This Row],[Buy In]]/100+Таблица1[[#This Row],[ITM]]/100","v":28}]
[58,"Порохнюк Андрей",null,2800,null,{"$f":"Таблица1[[#This Row],[Buy In]]/100+Таблица1[[#This Row],[ITM]]/100","v":28}]
[59,"Тесленко Сергей",null,2800,null,{"$f":"Таблица1[[#This Row],[Buy In]]/100+Таблица1[[#This Row],[ITM]]/100","v":28}]
[60,"Абдулаев Исрафим",null,2400,null,{"$f":"Таблица1[[#This Row],[Buy In]]/100+Таблица1[[#This Row],[ITM]]/100","v":24}]
[61,"Закрепа Антон",null,2400,null,{"$f":"Таблица1[[#This Row],[Buy In]]/100+Таблица1[[#This Row],[ITM]]/100","v":24}]
[62,"Столярчук Андрей",null,2400,null,{"$f":"Таблица1[[#This Row],[Buy In]]/100+Таблица1[[#This Row],[ITM]]/100","v":24}]
[63,"Боринец Алексей",null,2000,null,{"$f":"Таблица1[[#This Row],[Buy In]]/100+Таблица1[[#This Row],[ITM]]/100","v":20}]
[64,"Вовк Павел",null,2000,null,{"$f":"Таблица1[[#This Row],[Buy In]]/100+Таблица1[[#This Row],[ITM]]/100","v":20}]
[65,"Гаврилюк Рустам",null,2000,null,{"$f":"Таблица1[[#This Row],[Buy In]]/100+Таблица1[[#This Row],[ITM]]/100","v":20}]
[66,"Ким",null,2000,null,{"$f":"Таблица1[[#This Row],[Buy In]]/100+Таблица1[[#This Row],[ITM]]/100","v":20}]
[67,"Куприн Тарас",null,2000,null,{"$f":"Таблица1[[#This Row],[Buy In]]/100+Таблица1[[#This Row],[ITM]]/100","v":20}]
[68,"Мельник Кирилл",null,2000,null,{"$f":"Таблица1[[#This Row],[Buy In]]/100+Таблица1[[#This Row],[ITM]]/100","v":20}]
[69,"Мудрицкий Денис",null,2000,null,{"$f":"Таблица1[[#This Row],[Buy In]]/100+Таблица1[[#This Row],[ITM]]/100","v":20}]
[70,"Пилипенко Антон",null,2000,null,{"$f":"Таблица1[[#This Row],[Buy In]]/100+Таблица1[[#This Row],[ITM]]/100","v":20}]
[71,"Пыталев Алексей",null,2000,null,{"$f":"Таблица1[[#This Row],[Buy In]]/100+Таблица1[[#This Row],[ITM]]/100","v":20}]
[72,"Стуканов Игорь",null,2000,null,{"$f":"Таблица1[[#This Row],[Buy In]]/100+Таблица1[[#This Row],[ITM]]/100","v":20}]
[73,"Сухомлинов Александр",null,2000,null,{"$f":"Таблица1[[#This Row],[Buy In]]/100+Таблица1[[#This Row],[ITM]]/100","v":20}]
[74,"Толстой Слава",null,2000,null,{"$f":"Таблица1[[#This Row],[Buy In]]/100+Таблица1[[#This Row],[ITM]]/100","v":20}]
[75,"Чеберко Вадим",null,2000,null,{"$f":"Таблица1[[#This Row],[Buy In]]/100+Таблица1[[#This Row],[ITM]]/100","v":20}]
[76,"Шевцов Владимир",null,2000,null,{"$f":"Таблица1[[#This Row],[Buy In]]/100+Таблица1[[#This Row],[ITM]]/100","v":20}]
[77,"Шипа Майк",null,2000,null,{"$f":"Таблица1[[#This Row],[Buy In]]/100+Таблица1[[#This Row],[ITM]]/100","v":20}]
[78,"Штанько Александр",null,2000,null,{"$f":"Таблица1[[#This Row],[Buy In]]/100+Таблица1[[#This Row],[ITM]]/100","v":20}]
[79,"Николаенко Слава",null,1800,null,{"$f":"Таблица1[[#This Row],[Buy In]]/100+Таблица1[[#This Row],[ITM]]/100","v":18}]
[80,"Билостуцкий Сергей",null,1500,null,{"$f":"Таблица1[[#This Row],[Buy In]]/100+Таблица1[[#This Row],[ITM]]/100","v":15}]
[81,"Козаченко Анатолий",null,1300,null,{"$f":"Таблица1[[#This Row],[Buy In]]/100+Таблица1[[#This Row],[ITM]]/100","v":13}]
[82,"Богдан",null,1200,null,{"$f":"Таблица1[[#This Row],[Buy In]]/100+Таблица1[[#This Row],[ITM]]/100","v":12}]
[83,"Горюнов Евгений",null,1200,null,{"$f":"Таблица1[[#This Row],[Buy In]]/100+Таблица1[[#This Row],[ITM]]/100","v":12}]
[84,"Ерашов Сергей",null,1200,null,{"$f":"Таблица1[[#This Row],[Buy In]]/100+Таблица1[[#This Row],[ITM]]/100","v":12}]
[85,"Зименко Иван",null,1200,null,{"$f":"Таблица1[[#This Row],[Buy In]]/100+Таблица1[[#This Row],[ITM]]/100","v":12}]
[86,"Компаниец Олег",null,1200,null,{"$f":"Таблица1[[#This Row],[Buy In]]/100+Таблица1[[#This Row],[ITM]]/100","v":12}]
[87,"Михеев Алексей",null,1200,null,{"$f":"Таблица1[[#This Row],[Buy In]]/100+Таблица1[[#This Row],[ITM]]/100","v":12}]
[88,"Эсхан ",null,1200,null,{"$f":"Таблица1[[#This Row],[Buy In]]/100+Таблица1[[#This Row],[ITM]]/100","v":12}]
[89,"Анцев Виктор",null,1000,null,{"$f":"Таблица1[[#This Row],[Buy In]]/100+Таблица1[[#This Row],[ITM]]/100","v":10}]
[90,"Береснов",null,1000,null,{"$f":"Таблица1[[#This Row],[Buy In]]/100+Таблица1[[#This Row],[ITM]]/100","v":10}]
[91,"Бороневич Денис",null,1000,null,{"$f":"Таблица1[[#This Row],[Buy In]]/100+Таблица1[[#This Row],[ITM]]/100","v":10}]
[92,"Бочаров Антон",null,1000,null,{"$f":"Таблица1[[#This Row],[Buy In]]/100+Таблица1[[#This Row],[ITM]]/100","v":10}]
[93,"Володя",null,1000,null,{"$f":"Таблица1[[#This Row],[Buy In]]/100+Таблица1[[#This Row],[ITM]]/100","v":10}]
[94,"Дядя Коля",null,1000,null,{"$f":"Таблица1[[#This Row],[Buy In]]/100+Таблица1[[#This Row],[ITM]]/100","v":10}]
[95,"Емельянцев Андрей",null,1000,null,{"$f":"Таблица1[[#This Row],[Buy In]]/100+Таблица1[[#This Row],[ITM]]/100","v":10}]
[96,"Емченко Сергей",null,1000,null,{"$f":"Таблица1[[#This Row],[Buy In]]/100+Таблица1[[#This Row],[ITM]]/100","v":10}]
[97,"Иванов Олег",null,1000,null,{"$f":"Таблица1[[#This Row],[Buy In]]/100+Таблица1[[#This Row],[ITM]]/100","v":10}]
[98,"Козарь Антон",null,1000,null,{"$f":"Таблица1[[#This Row],[Buy In]]/100+Таблица1[[#This Row],[ITM]]/100","v":10}]
[99,"Пеленье Игорь",null,1000,null,{"$f":"Таблица1[[#This Row],[Buy In]]/100+Таблица1[[#This Row],[ITM]]/100","v":10}]
[100,"Тенгаев Александр",null,1000,null,{"$f":"Таблица1[[#This Row],[Buy In]]/100+Таблица1[[#This Row],[ITM]]/100","v":10}]
[101,"Трофимович Саша",null,1000,null,{"$f":"Таблица1[[#This Row],[Buy In]]/100+Таблица1[[#This Row],[ITM]]/100","v":10}]
[102,"Уланов Роман",null,1000,null,{"$f":"Таблица1[[#This Row],[Buy In]]/100+Таблица1[[#This Row],[ITM]]/100","v":10}]
[103,"Фунт",null,1000,null,{"$f":"Таблица1[[#This Row],[Buy In]]/100+Таблица1[[#This Row],[ITM]]/100","v":10}]
[104,"Биболетов Аскар",null,800,null,{"$f":"Таблица1[[#This Row],[Buy In]]/100+Таблица1[[#This Row],[ITM]]/100","v":8}]
[105,"Бойко Владимир",null,800,null,{"$f":"Таблица1[[#This Row],[Buy In]]/100+Таблица1[[#This Row],[ITM]]/100","v":8}]
[106,"Ковколюк Виталий",null,800,null,{"$f":"Таблица1[[#This Row],[Buy In]]/100+Таблица1[[#This Row],[ITM]]/100","v":8}]
[107,"Кузюк Александр",null,800,null,{"$f":"Таблица1[[#This Row],[Buy In]]/100+Таблица1[[#This Row],[ITM]]/100","v":8}]
[108,"Питулей Ярослав",null,800,null,{"$f":"Таблица1[[#This Row],[Buy In]]/100+Таблица1[[#This Row],[ITM]]/100","v":8}]
[109,"Руденко Юра",null,800,null,{"$f":"Таблица1[[#This Row],[Buy In]]/100+Таблица1[[#This Row],[ITM]]/100","v":8}]
[110,"Смирнов Александр",null,800,null,{"$f":"Таблица1[[#This Row],[Buy In]]/100+Таблица1[[#This Row],[ITM]]/100","v":8}]
[111,"Старухин Денис",null,800,null,{"$f":"Таблица1[[#This Row],[Buy In]]/100+Таблица1[[#This Row],[ITM]]/100","v":8}]
[112,"Bolgrey Андрей",null,500,null,{"$f":"Таблица1[[#This Row],[Buy In]]/100+Таблица1[[#This Row],[ITM]]/100","v":5}]
[113,"Витранюк Юрий",null,500,null,{"$f":"Таблица1[[#This Row],[Buy In]]/100+Таблица1[[#This Row],[ITM]]/100","v":5}]
[114,"Гончарук Сергей",null,500,null,{"$f":"Таблица1[[#This Row],[Buy In]]/100+Таблица1[[#This Row],[ITM]]/100","v":5}]
[115,"Игнатов Слава",null,500,null,{"$f":"Таблица1[[#This Row],[Buy In]]/100+Таблица1[[#This Row],[ITM]]/100","v":5}]
[116,"Купит Михаил",null,500,null,{"$f":"Таблица1[[#This Row],[Buy In]]/100+Таблица1[[#This Row],[ITM]]/100","v":5}]
[117,"Куц Богдан",null,500,null,{"$f":"Таблица1[[#This Row],[Buy In]]/100+Таблица1[[#This Row],[ITM]]/100","v":5}]
[118,"Табаков Виталий",null,500,null,{"$f":"Таблица1[[#This Row],[Buy In]]/100+Таблица1[[#This Row],[ITM]]/100","v":5}]
[119,"Ткачук Александр",null,500,null,{"$f":"Таблица1[[#This Row],[Buy In]]/100+Таблица1[[#This Row],[ITM]]/100","v":5}]
[120,"Чабан Андрей",null,500,null,{"$f":"Таблица1[[#This Row],[Buy In]]/100+Таблица1[[#This Row],[ITM]]/100","v":5}]
[121,"Чепинога Влад",null,500,null,{"$f":"Таблица1[[#This Row],[Buy In]]/100+Таблица1[[#This Row],[ITM]]/100","v":5}]
[{"$nulls":5},{"$f":"Таблица1[[#This Row],[Buy In]]/100+Таблица1[[#This Row],[ITM]]/100","v":0}]
[]
[]
[]
[null,"ИТОГО",null,{"$f":"SUM(Таблица1[Buy In])","v":329000},{"$f":"SUM(Таблица1[ITM])","v":262100},{"$f":"SUM(Таблица1[[Rating point     ]])","v":5911}]